Workbook

Sheet REPORTE CALLAO AL 26 07 18
A5: REPORTE DE EJECUCIÓN PRESUPUESTAL DEL PP PTCD 0051 (ámbito educativo y familiar): POR GENÉRICA DE GASTO 2.3 Y 2.6, ESPECÍFICA DE GASTO Y POR TODA FUENTE DE FINACIAMIENTO (año 2018)
A6: AL 26 /07/18
A8: UNIDAD EJECUTORA | B8: ACTIVIDAD | D8: FUENTE DE FINANCIAMIENTO | F8: GENÉRICA DE GASTO | H8: ESPECÍFICA DE GASTO | I8: NOMBRE DE LA ESPECIFICA | J8: PIA | K8: PIM | L8: m01 | M8: m02 | N8: m03 | O8: m04 | P8: m05 | Q8: m06 | R8: m07 | S8: m08 | T8: m09 | U8: m10 | V8: m11 | W8: m12 | X8: SIAF
X9: CERTIFICACIÓN | Y9: COMPROMISO ANUAL | Z9: EJECUCIÓN | AA9: % CERTIFICACIÓN SIAF/PIM | AB9: % COMPROMISO ANUAL SIAF/PIM | AC9: % EJECUCIÓN
A10: 300 | B10: 5005229 | C10: AMB FAMILIAR | D10: RO | E10: 1 | F10: 23 | G10: BIENES Y SERVICIOS | H10: 23 2 71199 | I10: SERVICIOS DIVERSOS | J10: 200000 | K10: 102655 | L10: 30000 | M10: 0 | N10: 0 | O10: 0 | P10: 39284 | Q10: 17308.4 | R10: 5750 | S10: 0 | T10: 0 | U10: 0 | V10: 0 | W10: 0 | X10: =+SUM(L10:W10) -> 92342.4 | Y10: 92342.4 | Z10: 56592.4 | AA10: =+X10/K10 -> 0.8995411816 | AB10: =+Y10/K10 -> 0.8995411816 | AC10: =+Z10/K10 -> 0.5512873216
A11: 300 | B11: 5005229 | C11: AMB FAMILIAR | D11: RO | E11: 1 | F11: 23 | G11: BIENES Y SERVICIOS | H11: 23 1 5 1 2 | I11: PAPELERIA EN GRAL UTILES Y MATERIALES DE OFICNA | J11: 0 | K11: 6500 | L11: 0 | M11: 0 | N11: 0 | O11: 0 | P11: 3046 | Q11: 0 | R11: 0 | S11: 0 | T11: 0 | U11: 0 | V11: 0 | W11: 0 | X11: =+SUM(L11:W11) -> 3046 | Y11: 3046 | Z11: 3046 | AA11: =+X11/K11 -> 0.4686153846 | AB11: =+Y11/K11 -> 0.4686153846 | AC11: =+Z11/K11 -> 0.4686153846
A12: 300 | B12: 5005229 | C12: AMB FAMILIAR | D12: RO | E12: 1 | F12: 23 | G12: BIENES Y SERVICIOS | H12: 23 2 1 299 | I12: OTROS GASTOS | J12: 0 | K12: 60345 | L12: 0 | M12: 0 | N12: 0 | O12: 0 | P12: 0 | Q12: 0 | R12: 60345 | S12: 0 | T12: 0 | U12: 0 | V12: 0 | W12: 0 | X12: =+SUM(L12:W12) -> 60345 | Y12: 0 | Z12: 0 | AA12: 1 | AB12: 0 | AC12: 0
A13: 300 | B13: 5005229 | C13: AMB FAMILIAR | D13: RO | E13: 1 | F13: 23 | G13: BIENES Y SERVICIOS | H13: 23 2 2 4 4 | I13: SERVICO DE IMPRESIÓN ENCUADERNACION Y EMPASTADO | J13: 0 | K13: 13000 | L13: 0 | M13: 0 | N13: 0 | O13: 12950 | P13: 0 | Q13: 0 | R13: 0 | S13: 0 | T13: 0 | U13: 0 | V13: 0 | W13: 0 | X13: 12950 | Y13: 12950 | Z13: 12950 | AA13: 0.9961538462 | AB13: 0.9961538462 | AC13: 0.9961538462
A14: 300 | B14: 5005229 | C14: AMB FAMILIAR | D14: RO | E14: 1 | F14: 23 | G14: BIENES Y SERVICIOS | H14: 23 2 7 3 2 | I14: REALIZADO POR PERSONAS NATURALES | J14: 0 | K14: 3000 | L14: 0 | M14: 0 | N14: 0 | O14: 0 | P14: 3000 | Q14: 0 | R14: 0 | S14: 0 | T14: 0 | U14: 0 | V14: 0 | W14: 0 | X14: 3000 | Y14: 3000 | Z14: 0 | AA14: 1 | AB14: 1 | AC14: 0
A15: 300 | B15: 5005229 | C15: AMB FAMILIAR | D15: RO | E15: 1 | F15: 23 | G15: BIENES Y SERVICIOS | H15: 23 1 9 1 2 | I15: MATERIAL DIDACTICO ACCSESORIOS Y UTILES DE ENSEÑANZA | J15: 0 | K15: 13000 | L15: 0 | M15: 0 | N15: 0 | O15: 0 | P15: 11214.21 | Q15: 0 | R15: 0 | S15: 0 | T15: 0 | U15: 0 | V15: 0 | W15: 0 | X15: 11214.21 | Y15: 11214.21 | Z15: 11214.21 | AA15: 0.8626315385 | AB15: 0.8626315385 | AC15: 0.8626315385
A16: TOTAL 23 AMBITO FAM RO | J16: =SUM(J10:J15) -> 200000 | K16: 198500 | L16: 30000 | M16: 0 | N16: 0 | O16: 12950 | P16: 56544.21 | Q16: 17308.4 | R16: 66095 | S16: 0 | T16: 0 | U16: 0 | V16: 0 | W16: 0 | X16: 182897.61 | Y16: 122552.61 | Z16: 83802.61 | AA16: 0.921398539 | AB16: 0.6173935013 | AC16: 0.4221793955
A17: 300 | B17: 5005230 | C17: AMBITO EDUCATIVO | D17: RO | E17: 1 | F17: 23 | G17: BIENES Y SERVICIOS | H17: 23 2 71199 | I17: SERVICIOS DIVERSOS | J17: 571349 | K17: 161209 | L17: 59000 | M17: 7900 | N17: 17760 | O17: 31862.28 | P17: 4046 | Q17: 8738 | R17: 29999 | S17: 0 | T17: 0 | U17: 0 | V17: 0 | W17: 0 | X17: 159305.28 | Y17: 159305.28 | Z17: 89665.28 | AA17: 0.9881909819 | AB17: 0.9881909819 | AC17: 0.5562051746
A18: 300 | B18: 5005230 | C18: AMBITO EDUCATIVO | D18: RO | E18: 1 | F18: 23 | G18: BIENES Y SERVICIOS | H18: 23 1 5 1 2 | I18: PAPELERIA EN GRAL UTILES Y MATERIALES DE OFICNA | J18: 0 | K18: 13000 | L18: 0 | M18: 0 | N18: 0 | O18: 8027.92 | P18: 0 | Q18: 0 | R18: 4965.74 | S18: 0 | T18: 0 | U18: 0 | V18: 0 | W18: 0 | X18: 12993.66 | Y18: 12993.66 | Z18: 8027.92 | AA18: 0.9995123077 | AB18: 0.9995123077 | AC18: 0.6175323077
A19: 300 | B19: 5005230 | C19: AMBITO EDUCATIVO | D19: RO | E19: 1 | F19: 23 | G19: BIENES Y SERVICIOS | H19: 23 2 1 299 | I19: OTROS GASTOS | J19: 0 | K19: 15100 | L19: 0 | M19: 0 | N19: 0 | O19: 0 | P19: 0 | Q19: 0 | R19: 15100 | S19: 0 | T19: 0 | U19: 0 | V19: 0 | W19: 0 | X19: 15100 | Y19: 0 | Z19: 0 | AA19: 1 | AB19: 0 | AC19: 0
A20: 300 | B20: 5005230 | C20: AMBITO EDUCATIVO | D20: RO | E20: 1 | F20: 23 | G20: BIENES Y SERVICIOS | H20: 23 2 2 4 4 | I20: SERVICO DE IMPRESIÓN ENCUADERNACION Y EMPASTADO | J20: 0 | K20: 3200 | L20: 0 | M20: 0 | N20: 0 | O20: 0 | P20: 0 | Q20: 0 | R20: 1575 | S20: 0 | T20: 0 | U20: 0 | V20: 0 | W20: 0 | X20: 1575 | Y20: 1575 | Z20: 1575 | AA20: 0.4921875 | AB20: 0.4921875 | AC20: 0.4921875
A21: 300 | B21: 5005230 | C21: AMBITO EDUCATIVO | D21: RO | E21: 1 | F21: 23 | G21: BIENES Y SERVICIOS | H21: 23 2 4 1 5 | I21: DE MAQUINAS Y EQUIPO EN GRAL | J21: 0 | K21: 16000 | L21: 0 | M21: 0 | N21: 0 | O21: 9500 | P21: 0 | Q21: 2800 | R21: 2700 | S21: 0 | T21: 0 | U21: 0 | V21: 0 | W21: 0 | X21: 15000 | Y21: 15000 | Z21: 15000 | AA21: 0.9375 | AB21: 0.9375 | AC21: 0.9375
A22: 300 | B22: 5005230 | C22: AMBITO EDUCATIVO | D22: RO | E22: 1 | F22: 23 | G22: BIENES Y SERVICIOS | H22: 23 2 7 299 | I22: OTROS SERVICIOS SIMILARES | J22: 0 | K22: 13840 | L22: 0 | M22: 0 | N22: 0 | O22: 3460 | P22: 6920 | Q22: 3460 | R22: 0 | S22: 0 | T22: 0 | U22: 0 | V22: 0 | W22: 0 | X22: 13840 | Y22: 13840 | Z22: 13840 | AA22: 1 | AB22: 1 | AC22: 1
A23: 300 | B23: 5005230 | C23: AMBITO EDUCATIVO | D23: RO | E23: 1 | F23: 23 | G23: BIENES Y SERVICIOS | H23: 23 2 8 1 1 | I23: CONTRATO ADMINISTRATIVO DE SERVICIOS | J23: 307496 | K23: 645438 | L23: 413536 | M23: 413536 | N23: 262930.24 | X23: 413536 | Y23: 413536 | Z23: 318672 | AA23: 0.6407060012 | AB23: 0.6407060012 | AC23: 0.4937298393
A24: 300 | B24: 5005230 | C24: AMBITO EDUCATIVO | D24: RO | E24: 1 | F24: 23 | G24: BIENES Y SERVICIOS | H24: 23 2 8 1 2 | I24: CONTRIBUCION A ESSALUD DE LOS CAS | J24: 11898 | K24: 20956 | L24: 16218 | M24: 16218 | N24: 9603 | X24: 16218 | Y24: 16218 | Z24: 11284 | AA24: 0.7739072342 | AB24: 0.7739072342 | AC24: 0.5384615385
A25: TOTAL 23 AMBITO ERDUCATIVO RO | J25: =SUM(J17:J24) -> 890743 | K25: =SUM(K17:K24) -> 888743 | L25: 488754 | M25: 437654 | N25: 290293.24 | O25: 52850.2 | P25: 10966 | Q25: 14998 | R25: 54339.74 | S25: 0 | T25: 0 | U25: 0 | V25: 0 | W25: 0 | X25: 647567.94 | Y25: 632467.94 | Z25: 458064.2 | AA25: 0.7286335195 | AB25: 0.7116432309 | AC25: 0.5154068161
A26: 300 | B26: 5005230 | C26: AMBITO EDUCATIVO | D26: D Y T | E26: 4 | F26: 23 | G26: BIENES Y SERVICIOS | H26: 23 1 1 1 1 | I26: ALIMENTOS Y BEBIDAS PARA CONSUMO HUMANO | J26: 0 | K26: 32000 | L26: 0 | M26: 0 | N26: 0 | O26: 0 | P26: 0 | Q26: 0 | R26: 30000 | S26: 0 | T26: 0 | U26: 0 | V26: 0 | W26: 0 | X26: =+SUM(L26:W26) -> 30000 | Y26: 30000 | Z26: 0 | AA26: =+X26/K26 -> 0.9375 | AB26: =+Y26/K26 -> 0.9375 | AC26: =+Z26/K26 -> 0
A27: 300 | B27: 5005230 | C27: AMBITO EDUCATIVO | D27: D Y T | E27: 4 | F27: 23 | G27: BIENES Y SERVICIOS | H27: 23 1 5 1 1 | I27: REPUESTOS Y ACSESORIOS | J27: 0 | K27: 15000 | L27: 0 | M27: 0 | N27: 0 | O27: 0 | P27: 0 | Q27: 0 | R27: 0 | S27: 0 | T27: 0 | U27: 0 | V27: 0 | W27: 0 | X27: 0 | Y27: 0 | Z27: 0 | AA27: 0 | AB27: 0 | AC27: 0
A28: 300 | B28: 5005230 | C28: AMBITO EDUCATIVO | D28: D Y T | E28: 4 | F28: 23 | G28: BIENES Y SERVICIOS | H28: 23 1 5 1 2 | I28: PAPELERIA EN GENERAL UTILES Y MATERIALES DE OFICINA | J28: 0 | K28: 65000 | L28: 0 | M28: 0 | N28: 0 | O28: 0 | P28: 0 | Q28: 0 | R28: 53633.41 | S28: 0 | T28: 0 | U28: 0 | V28: 0 | W28: 0 | X28: 53633.41 | Y28: 53633.41 | Z28: 0 | AA28: 0.8251293846 | AB28: 0.8251293846 | AC28: 0
A29: 300 | B29: 5005230 | C29: AMBITO EDUCATIVO | D29: D Y T | E29: 4 | F29: 23 | G29: BIENES Y SERVICIOS | H29: 23 1 5 3 1 | I29: ASEO LIMPIEZA Y TOCADOR | J29: 0 | K29: 3800 | L29: 0 | M29: 0 | N29: 0 | O29: 0 | P29: 0 | Q29: 0 | R29: 0 | S29: 0 | T29: 0 | U29: 0 | V29: 0 | W29: 0 | X29: 0 | Y29: 0 | Z29: 0 | AA29: 0 | AB29: 0 | AC29: 0
A30: 300 | B30: 5005230 | C30: AMBITO EDUCATIVO | D30: D Y T | E30: 4 | F30: 23 | G30: BIENES Y SERVICIOS | H30: 23 1 6 199 | I30: OTROS GASTOS Y REPUESTOS | J30: 0 | K30: 4000 | L30: 0 | M30: 0 | N30: 0 | O30: 0 | P30: 0 | Q30: 0 | R30: 0 | S30: 0 | T30: 0 | U30: 0 | V30: 0 | W30: 0 | X30: 0 | Y30: 0 | Z30: 0 | AA30: 0 | AB30: 0 | AC30: 0
A31: 300 | B31: 5005230 | C31: AMBITO EDUCATIVO | D31: D Y T | E31: 4 | F31: 23 | G31: BIENES Y SERVICIOS | H31: 23 1 9 1 2 | I31: MATERIAL DIDACTICO ACCSESORIOS Y UTILES DE ENSEÑANZA | J31: 0 | K31: 53316 | L31: 0 | M31: 0 | N31: 5708.71 | O31: 29291.82 | P31: 225.43 | Q31: 0 | R31: 0 | S31: 0 | T31: 0 | U31: 0 | V31: 0 | W31: 0 | X31: 35225.96 | Y31: 35225.96 | Z31: 35225.96 | AA31: 0.660701478 | AB31: 0.660701478 | AC31: 0.660701478
A32: 300 | B32: 5005230 | C32: AMBITO EDUCATIVO | D32: D Y T | E32: 4 | F32: 23 | G32: BIENES Y SERVICIOS | H32: 23 111 1 1 | I32: PARA EDIFICIOS Y ESTRUCTURAS | J32: 0 | K32: 3534 | L32: 0 | M32: 0 | N32: 0 | O32: 2700 | P32: 0 | Q32: 0 | R32: 0 | S32: 0 | T32: 0 | U32: 0 | V32: 0 | W32: 0 | X32: 2700 | Y32: 2700 | Z32: 2700 | AA32: 0.7640067912 | AB32: 0.7640067912 | AC32: 0.7640067912
A33: 300 | B33: 5005230 | C33: AMBITO EDUCATIVO | D33: D Y T | E33: 4 | F33: 23 | G33: BIENES Y SERVICIOS | H33: 23 2 2 4 4 | I33: SERVICO DE IMPRESIÓN ENCUADERNACION Y EMPASTADO | J33: 0 | K33: 201369 | L33: 0 | M33: 0 | N33: 26550 | O33: 3611 | P33: 1200 | Q33: 43050 | R33: 124466 | S33: 0 | T33: 0 | U33: 0 | V33: 0 | W33: 0 | X33: 198877 | Y33: 198877 | Z33: 84597 | AA33: 0.9876247089 | AB33: 0.9876247089 | AC33: 0.4201093515
A34: 300 | B34: 5005230 | C34: AMBITO EDUCATIVO | D34: D Y T | E34: 4 | F34: 23 | G34: BIENES Y SERVICIOS | H34: 23 2 4 1 5 | I34: DE MAQUINAS Y EQUIPO EN GRAL | J34: 0 | K34: 6000 | L34: 0 | M34: 0 | N34: 0 | O34: 0 | P34: 0 | Q34: 0 | R34: 0 | S34: 0 | T34: 0 | U34: 0 | V34: 0 | W34: 0 | X34: 0 | Y34: 0 | Z34: 0 | AA34: 0 | AB34: 0 | AC34: 0
A35: 300 | B35: 5005230 | C35: AMBITO EDUCATIVO | D35: D Y T | E35: 4 | F35: 23 | G35: BIENES Y SERVICIOS | H35: 23 2 7 299 | I35: OTROS SERVICIOS SIMILARES | J35: 0 | K35: 72660 | L35: 0 | M35: 0 | N35: 0 | O35: 0 | P35: 0 | Q35: 6920 | R35: 62280 | S35: 0 | T35: 0 | U35: 0 | V35: 0 | W35: 0 | X35: 69200 | Y35: 69200 | Z35: 10380 | AA35: 0.9523809524 | AB35: 0.9523809524 | AC35: 0.1428571429
A36: 300 | B36: 5005230 | C36: AMBITO EDUCATIVO | D36: D Y T | E36: 4 | F36: 23 | G36: BIENES Y SERVICIOS | H36: 23 2 71199 | I36: SERVICIOS DIVERSOS | J36: 0 | K36: 453433 | L36: 0 | M36: 0 | N36: 17662.6 | O36: 73970.4 | P36: 10950 | Q36: 49576 | R36: 296600 | S36: 0 | T36: 0 | U36: 0 | V36: 0 | W36: 0 | X36: 448759 | Y36: 448759 | Z36: 169269 | AA36: 0.9896919721 | AB36: 0.9896919721 | AC36: 0.3733054277
A37: 300 | B37: 5005230 | C37: AMBITO EDUCATIVO | D37: D Y T | E37: 4 | F37: 26 | G37: ACTIVOS NO FINANCIEROS | H37: 26 3 2 1 1 | I37: MAQUINAS Y EQUIPO | J37: 0 | K37: 22000 | L37: 0 | M37: 0 | N37: 0 | O37: 4515.33 | P37: 0 | Q37: 0 | R37: 6750 | S37: 0 | T37: 0 | U37: 0 | V37: 0 | W37: 0 | X37: 11265.33 | Y37: 11265.33 | Z37: 4515.33 | AA37: 0.5120604545 | AB37: 0.5120604545 | AC37: 0.2052422727
A38: 300 | B38: 5005230 | C38: AMBITO EDUCATIVO | D38: D Y T | E38: 4 | F38: 26 | G38: ACTIVOS NO FINANCIEROS | H38: 26 3 2 1 2 | I38: MOBILIARIO | J38: 0 | K38: 12000 | L38: 0 | M38: 0 | N38: 0 | O38: 0 | P38: 0 | Q38: 2940 | R38: 480 | S38: 0 | T38: 0 | U38: 0 | V38: 0 | W38: 0 | X38: 3420 | Y38: 2940 | Z38: 2940 | AA38: 0.285 | AB38: 0.245 | AC38: 0.245
A39: 300 | B39: 5005230 | C39: AMBITO EDUCATIVO | D39: D Y T | E39: 4 | F39: 26 | G39: ACTIVOS NO FINANCIEROS | H39: 26 3 2 2 1 | I39: MAQUINA PARA IIEE | J39: 0 | K39: 49720 | L39: 0 | M39: 0 | N39: 0 | O39: 0 | P39: 0 | Q39: 0 | R39: 28934 | S39: 0 | T39: 0 | U39: 0 | V39: 0 | W39: 0 | X39: 28934 | Y39: 28934 | Z39: 0 | AA39: 0.5819388576 | AB39: 0.5819388576 | AC39: 0
A40: 300 | B40: 5005230 | C40: AMBITO EDUCATIVO | D40: D Y T | E40: 4 | F40: 26 | G40: ACTIVOS NO FINANCIEROS | H40: 26 3 2 2 2 | I40: MOBILIARIO PARA IIEE | J40: 0 | K40: 3000 | L40: 0 | M40: 0 | N40: 0 | O40: 0 | P40: 0 | Q40: 0 | R40: 0 | S40: 0 | T40: 0 | U40: 0 | V40: 0 | W40: 0 | X40: 0 | Y40: 0 | Z40: 0 | AA40: 0 | AB40: 0 | AC40: 0
A41: 300 | B41: 5005230 | C41: AMBITO EDUCATIVO | D41: D Y T | E41: 4 | F41: 26 | G41: ACTIVOS NO FINANCIEROS | H41: 26 3 2 3 1 | I41: EQUIPOS COMPUTACIONALES Y PERIFERICOS | J41: 0 | K41: 102060 | L41: 0 | M41: 0 | N41: 0 | O41: 6900 | P41: 12741.17 | Q41: 0 | R41: 77550 | S41: 0 | T41: 0 | U41: 0 | V41: 0 | W41: 0 | X41: 97191.17 | Y41: 97191.17 | Z41: 19641.17 | AA41: 0.9522944346 | AB41: 0.9522944346 | AC41: 0.1924472859
A42: TOTAL 23 Y 26 AMBITO EDUCATIVO DY T | J42: =SUM(J26:J41) -> 0 | K42: =SUM(K26:K41) -> 1098892 | L42: 0 | M42: 0 | N42: 49921.31 | O42: 120988.55 | P42: 25116.6 | Q42: 102486 | R42: 680693.41 | S42: 0 | T42: 0 | U42: 0 | V42: 0 | W42: 0 | X42: 979205.87 | Y42: 978725.87 | Z42: 329268.46 | AA42: 0.8910847199 | AB42: 0.8906479163 | AC42: 0.2996367796
A43: TOTAL | J43: =SUM(J42,J25,J16) -> 1090743 | K43: =SUM(K42,K25,K16) -> 2186135 | L43: 518754 | M43: 437654 | N43: 340214.55 | O43: 186788.75 | P43: 92626.81 | Q43: 134792.4 | R43: 801128.15 | S43: 0 | T43: 0 | U43: 0 | V43: 0 | W43: 0 | X43: 1809671.42 | Y43: 1733746.42 | Z43: 871135.27 | AA43: 0.8277949075 | AB43: 0.7930646644 | AC43: 0.398481919
A46: Fuente: REPORTE SIAF 2018 AL 26 07 18
A47: Análisis:
A48: Callao - DREC
A49: En las especificas de gasto 2.3 por la fuente de financiamiento de recursos ordinarios presenta una ejecucion de S/83,802.61 que representa una ejecucion del 42.22% en el ambito familiar por concepto de adquisicion de utiles y materiales de oficina,material didactico,servicio de impresiones de material de difusion ,servicio de atrencion de break para las aplicaciones de familias fuertes y servicios de fotocopiado y grabacion de estuches con dvds para los docentes facilitadores .
A50: En las especificas de gasto 2.3 por la fuente de financiamiento de recursos ordinarios presenta una ejecucion de S/458,064.20 que representa una ejecucion del 51.54% de ejecucion en el ambito educativo por concepto de adquisicion de utiles y materiales de oficina , servicio de impresion de materiales de difusion lbretas afiches entre otros , servicio de reparacion y mantenimiento de impresoras y fotocopiadoras ,servicios de grabacion de material de difusion ,servicios de refrigerios y break ,pago de etr por la modalidad de cas y contribuciones a essalud de cas y pago de un facilitador por la modalidad de terceros .
A51: En las especificas de gasto 2.3 Y 2.6 por la fuente de financiamiento de Donaciones y transferencias presenta una ejecucion de S/329,268.46 que representa una ejecucion del 29.96 % de ejecucion en el ambito educativo por concepto de adquisicion de utiles y materiales de oficina servicio de impresion de material de difusion, ,servicios de grabacion y confeccion de materiales de difusion ,servicios de refrigerios y break ,asi mismo como la adquisicion de equuipos computacxionales y maquina y equipo.
A54: A la fecha Callao tiene un avance de ejecucion a toda meta y fuente de fianciamiento de S/871,135.27 que representa un 39.25%

Sheet REPORTE VENTANILLA AL 26 07 18
C2: REPORTE DE EJECUCIÓN PRESUPUESTAL DEL PP PTCD 0051 (ámbito educativo y familiar): POR GENÉRICA DE GASTO 2.3 Y 2.6, ESPECÍFICA DE GASTO Y POR TODA FUENTE DE FINACIAMIENTO (Julio-año 2018)
C5: UNIDAD EJECUTORA | D5: ACTIVIDAD | E5: FUENTE DE FINANCIAMIENTO | F5: GENÉRICA DE GASTO | G5: ESPECÍFICA DE GASTO | H5: PIA | I5: PIM | J5: SIAF
J6: CERTIFICACIÓN | K6: COMPROMISO ANUAL | L6: EJECUCIÓN | M6: % CERTIFICACIÓN SIAF/PIM | N6: % COMPROMISO ANUAL SIAF/PIM | O6: % EJECUCIÓN
C7: 302 EDUCACION VENTANILA | D7: 5005229 PREVENCION CONSUMO DE DROGAS EN EL AMBITO FAMILIAR | E7: 1 RECURSOS ORDINARIOS | F7: 23 BIENES Y SERVICIOS | G7: 23.15.12 Papeleria ,utiles | H7: 0 | I7: 1500 | J7: 1500 | K7: 1500 | L7: 1500 | M7: =J7/I7 -> 1 | N7: =K7/I7 -> 1 | O7: =L7/I7 -> 1
C8: 302 EDUCACION VENTANILA | D8: 50052230PREVENCION CONSUMO DE DROGAS EN EL AMBITO EDUCATIVO | E8: 1 RECURSOS ORDINARIOS | F8: 23 BIENES Y SERVICIOS | G8: 23.15.12 Papeleria ,utiles | H8: 0 | I8: 2000 | J8: 1999.78 | K8: 1999.78 | L8: 1999.78 | M8: 0.99989 | N8: 0.99989 | O8: 0.99989
D9: TOTAL FUENTE 1 | H9: =+H7+H8 -> 0 | I9: =+I7+I8 -> 3500 | J9: =+J7+J8 -> 3499.78 | K9: 3499.78 | L9: 3499.78 | M9: 0.9999371429 | N9: 0.9999371429 | O9: 0.9999371429
C10: 302 EDUCACION VENTANILLA | D10: 5005230 PREVENCION DEL CONSUMO DE DROGAS EN EL AMBITO EDUCATIVO | E10: 4 DONACIONES Y TRANSFERENCIAS | F10: 23 BIENES Y SERVICIOS | G10: 23.19.12 Material Didactico | H10: 0 | I10: 49196 | J10: 49196 | K10: 49196 | L10: 49196 | M10: 1 | N10: 1 | O10: 1 | Q10: AMBITO FAMILIAR RO
G11: 23.1.11.11 Para edificios y estructuras | H11: 0 | I11: 2000 | J11: 2000 | K11: 2000 | L11: 2000 | M11: 1 | N11: 1 | O11: 1
G12: 23.22.44 Servicio de Impresiones | H12: 0 | I12: 33000 | J12: 25000 | K12: 25000 | L12: 25000 | M12: 0.7575757576 | N12: 0.7575757576 | O12: 0.7575757576
G13: 23.27.11.99 Servicios Diversos | H13: 0 | I13: 293804 | J13: 269042.58 | K13: 269042.58 | L13: 185274.58 | M13: 0.9157212972 | N13: 0.9157212972 | O13: 0.6306060503
D14: SUB TOTAL FUENTE 4 | H14: =+H10+H11+H12+H13 -> 0 | I14: =+I10+I11+I12+I13 -> 378000 | J14: 345238.58 | K14: 345238.58 | L14: 261470.58 | M14: 0.9133295767 | N14: 0.9133295767 | O14: 0.6917211111 | Q14: =SUM(L10:L14) -> 522941.16 | R14: 2.3 ROAMB FAM | S14: =SUM(Q14) -> 522941.16
C15: 302 EDUCACION VENTANILLA | D15: 5005230 PREVENCION DEL CONSUMO DE DROGAS EN EL AMBITO EDUCATIVO | E15: 4 DONACIONES Y TRANSFERENCIAS | F15: 26 ADQUISICION DE ACTIVOS NO FINANCIEROS | G15: 26.32.21 Maquinas y Equipos | H15: 0 | I15: 81100 | J15: 73684.64 | K15: 73684.64 | L15: 37700.04 | M15: 0.9085652281 | N15: 0.9085652281 | O15: 0.464858693 | Q15: AMBITO EDUCATIVO RO
G16: 26.32.31 Equipos computacionales y perifericos | H16: 0 | I16: 8500 | J16: 8500 | K16: 8500 | L16: 8500 | M16: 1 | N16: 1 | O16: 1
G17: 26.32.33 Equipos de telecomunicaciones | H17: 0 | I17: 14000 | J17: 14000 | K17: 14000 | L17: 14000 | M17: 1 | N17: 1 | O17: 1
D18: SUB TOTAL FUENTE 4 | H18: =+H15+H16+H17 -> 0 | I18: =+I15+I16+I17 -> 103600 | J18: 96184.64 | K18: 96184.64 | L18: 60200.04 | M18: 0.928423166 | N18: 0.928423166 | O18: 0.5810814672
D19: TOTAL FUENTE 4 | H19: =+H14+H18 -> 0 | I19: =+I14+I18 -> 481600 | J19: 441423.22 | K19: 441423.22 | L19: 321670.62 | M19: 0.9165764535 | N19: 0.9165764535 | O19: 0.6679207226
D21: TOTAL POR TODA FUENTE FINANCIAMIENTO | H21: =+H9+H19 -> 0 | I21: =+I9+I19 -> 485100 | J21: 444923 | K21: 444923 | L21: 325170.4 | M21: 0.9171779015 | N21: 0.9171779015 | O21: 0.6703162235
C23: Fuente: REPORTE SIAF 2018 AL 26 07 18
C24: Análisis:
C25: Callao - VENTANILLA
C27: En las especificas de gasto 2.3 por la fuente de financiamiento de recursos ordinarios presenta una ejecucion de S/ 3,499.78 que representa una ejecucion del 99.99% en el ambito familiar por concepto de adquisicion de utiles y materiales de oficina,material didactico,servicio de impresiones de material de difusion ,servicio de atrencion de break para las aplicaciones de familias fuertes y servicios de fotocopiado y grabacion de estuches con dvds para los docentes facilitadores .
C29: En las especificas de gasto 2.3 por la fuente de financiamiento de recursos ordinarios presenta una ejecucion de S/ 261,470.58 que representa una ejecucion del 69.17% de ejecucion en el ambito educativo por concepto de adquisicion de utiles y materiales de oficina , servicio de impresion de materiales de difusion lbretas afiches entre otros , servicio de reparacion y mantenimiento de impresoras y fotocopiadoras ,servicios de grabacion de material de difusion ,servicios de refrigerios y break ,pago de etr por la modalidad de cas y contribuciones a essalud de cas y pago de un facilitador por la modalidad de terceros .
C30: En las especificas de gasto 2.3 Y 2.6 por la fuente de financiamiento de Donaciones y transferencias presenta una ejecucion de S/ 321,670.62 que representa una ejecucion del 66.79 % de ejecucion en el ambito educativo por concepto de adquisicion de utiles y materiales de oficina servicio de impresion de material de difusion, ,servicios de grabacion y confeccion de materiales de difusion ,servicios de refrigerios y break ,asi mismo como la adquisicion de equuipos computacxionales y maquina y equipo.
C32: A la fecha Ventanilla tiene un avance de ejecucion a toda meta y fuente de fianciamiento de S/ 325,170.40 que representa un 67.03%
Q33: AMBITO EDUCATIVO DYT
Q37: =SUM(L33:L37) -> 0 | R37: 2.3 AMB EDUC DYT CAP
Q44: =SUM(L38:L44) -> 0 | R44: 2.6 AMB EDU DYT CAP | S44: =SUM(Q37:Q44) -> 0
Q61: CALLAO | R61: 0.8764
Q62: VENTANILLA | R62: 0.7186
C64: Fuente: REPORTE SIAF 2018
C65: Análisis:
C85: Nota: Elaborar un gráfico en el que se visualice el porcentaje de ejecución presupuestal del programa presupuestal: Por toda fuente de financiamiento, genérica de gasto, por UE y total del programa presupuestal.

Sheet CONSOLIDADO REGIONAL AL 260718
J3: CONSOLIDADO REGIONAL
B5: REPORTE DE EJECUCIÓN PRESUPUESTAL DEL PP PTCD 0051 (ámbito educativo y familiar): POR GENÉRICA DE GASTO 2.3 Y 2.6, ESPECÍFICA DE GASTO Y POR TODA FUENTE DE FINACIAMIENTO (año 2018)
B6: AL 26 /07/18
A8: UNIDAD EJECUTORA | C8: ACTIVIDAD | E8: FUENTE DE FINANCIAMIENTO | G8: GENÉRICA DE GASTO | I8: ESPECÍFICA DE GASTO | J8: NOMBRE DE LA ESPECIFICA | K8: PIA | L8: PIM | M8: m01 | N8: m02 | O8: m03 | P8: m04 | Q8: m05 | R8: m06 | S8: m07 | T8: m08 | U8: m09 | V8: m10 | W8: m11 | X8: m12 | Y8: SIAF
Y9: CERTIFICACIÓN | Z9: COMPROMISO ANUAL | AA9: EJECUCIÓN | AB9: % CERTIFICACIÓN SIAF/PIM | AC9: % COMPROMISO ANUAL SIAF/PIM | AD9: % EJECUCIÓN
A10: 300 | B10: CALLAO | C10: 5005229 | D10: AMB FAMILIAR | E10: RO | F10: 1 | G10: 23 | H10: BIENES Y SERVICIOS | I10: 23 2 71199 | J10: SERVICIOS DIVERSOS | K10: 200000 | L10: 102655 | M10: 30000 | N10: 0 | O10: 0 | P10: 0 | Q10: 39284 | R10: 17308.4 | S10: 5750 | T10: 0 | U10: 0 | V10: 0 | W10: 0 | X10: 0 | Y10: =+SUM(M10:X10) -> 92342.4 | Z10: 92342.4 | AA10: 56592.4 | AB10: =+Y10/L10 -> 0.8995411816 | AC10: =+Z10/L10 -> 0.8995411816 | AD10: =+AA10/L10 -> 0.5512873216
A11: 300 | B11: CALLAO | C11: 5005229 | D11: AMB FAMILIAR | E11: RO | F11: 1 | G11: 23 | H11: BIENES Y SERVICIOS | I11: 23 1 5 1 2 | J11: PAPELERIA EN GRAL UTILES Y MATERIALES DE OFICNA | K11: 0 | L11: 6500 | M11: 0 | N11: 0 | O11: 0 | P11: 0 | Q11: 3046 | R11: 0 | S11: 0 | T11: 0 | U11: 0 | V11: 0 | W11: 0 | X11: 0 | Y11: 3046 | Z11: 3046 | AA11: 3046 | AB11: 0.4686153846 | AC11: 0.4686153846 | AD11: 0.4686153846
A12: 300 | B12: CALLAO | C12: 5005229 | D12: AMB FAMILIAR | E12: RO | F12: 1 | G12: 23 | H12: BIENES Y SERVICIOS | I12: 23 2 1 299 | J12: OTROS GASTOS | K12: 0 | L12: 60345 | M12: 0 | N12: 0 | O12: 0 | P12: 0 | Q12: 0 | R12: 0 | S12: 60345 | T12: 0 | U12: 0 | V12: 0 | W12: 0 | X12: 0 | Y12: 60345 | Z12: 0 | AA12: 0 | AB12: 1 | AC12: 0 | AD12: 0
A13: 300 | B13: CALLAO | C13: 5005229 | D13: AMB FAMILIAR | E13: RO | F13: 1 | G13: 23 | H13: BIENES Y SERVICIOS | I13: 23 2 2 4 4 | J13: SERVICO DE IMPRESIÓN ENCUADERNACION Y EMPASTADO | K13: 0 | L13: 13000 | M13: 0 | N13: 0 | O13: 0 | P13: 12950 | Q13: 0 | R13: 0 | S13: 0 | T13: 0 | U13: 0 | V13: 0 | W13: 0 | X13: 0 | Y13: 12950 | Z13: 12950 | AA13: 12950 | AB13: 0.9961538462 | AC13: 0.9961538462 | AD13: 0.9961538462
A14: 300 | B14: CALLAO | C14: 5005229 | D14: AMB FAMILIAR | E14: RO | F14: 1 | G14: 23 | H14: BIENES Y SERVICIOS | I14: 23 2 7 3 2 | J14: REALIZADO POR PERSONAS NATURALES | K14: 0 | L14: 3000 | M14: 0 | N14: 0 | O14: 0 | P14: 0 | Q14: 3000 | R14: 0 | S14: 0 | T14: 0 | U14: 0 | V14: 0 | W14: 0 | X14: 0 | Y14: 3000 | Z14: 3000 | AA14: 0 | AB14: 1 | AC14: 1 | AD14: 0
A15: 300 | B15: CALLAO | C15: 5005229 | D15: AMB FAMILIAR | E15: RO | F15: 1 | G15: 23 | H15: BIENES Y SERVICIOS | I15: 23 1 9 1 2 | J15: MATERIAL DIDACTICO ACCSESORIOS Y UTILES DE ENSEÑANZA | K15: 0 | L15: 13000 | M15: 0 | N15: 0 | O15: 0 | P15: 0 | Q15: 11214.21 | R15: 0 | S15: 0 | T15: 0 | U15: 0 | V15: 0 | W15: 0 | X15: 0 | Y15: 11214.21 | Z15: 11214.21 | AA15: 11214.21 | AB15: 0.8626315385 | AC15: 0.8626315385 | AD15: 0.8626315385
A16: 302 | B16: VENTANILLA | C16: 5005229 | D16: AMB FAMILIAR | E16: RO | F16: 1 | G16: 23 | H16: BIENES Y SERVICIOS | I16: 23 1 5 1 2 | J16: PAPELERIA EN GRAL UTILES Y MATERIALES DE OFICINA | K16: 0 | L16: 1500 | M16: 1500 | N16: 1500 | O16: 1500 | Y16: 1500 | Z16: 1500 | AA16: 1500 | AB16: 1 | AC16: 1 | AD16: 1
B17: TOTAL 23 AMBITO FAM RO | K17: =SUM(K10:K16) -> 200000 | L17: =SUM(L10:L16) -> 200000 | M17: 31500 | N17: 1500 | O17: 1500 | P17: 12950 | Q17: 56544.21 | R17: 17308.4 | S17: 66095 | T17: 0 | U17: 0 | V17: 0 | W17: 0 | X17: 0 | Y17: 184397.61 | Z17: 124052.61 | AA17: 85302.61 | AB17: 0.92198805 | AC17: 0.62026305 | AD17: 0.42651305
A18: 300 | B18: CALLAO | C18: 5005230 | D18: AMBITO EDUCATIVO | E18: RO | F18: 1 | G18: 23 | H18: BIENES Y SERVICIOS | I18: 23 2 71199 | J18: SERVICIOS DIVERSOS | K18: 571349 | L18: 161209 | M18: 59000 | N18: 7900 | O18: 17760 | P18: 31862.28 | Q18: 4046 | R18: 8738 | S18: 29999 | T18: 0 | U18: 0 | V18: 0 | W18: 0 | X18: 0 | Y18: =+SUM(M18:X18) -> 159305.28 | Z18: 159305.28 | AA18: 89665.28 | AB18: 0.9881909819 | AC18: 0.9881909819 | AD18: 0.5562051746
A19: 300 | B19: CALLAO | C19: 5005230 | D19: AMBITO EDUCATIVO | E19: RO | F19: 1 | G19: 23 | H19: BIENES Y SERVICIOS | I19: 23 1 5 1 2 | J19: PAPELERIA EN GRAL UTILES Y MATERIALES DE OFICNA | K19: 0 | L19: 13000 | M19: 0 | N19: 0 | O19: 0 | P19: 8027.92 | Q19: 0 | R19: 0 | S19: 4965.74 | T19: 0 | U19: 0 | V19: 0 | W19: 0 | X19: 0 | Y19: 12993.66 | Z19: 12993.66 | AA19: 8027.92 | AB19: 0.9995123077 | AC19: 0.9995123077 | AD19: 0.6175323077
A20: 300 | B20: CALLAO | C20: 5005230 | D20: AMBITO EDUCATIVO | E20: RO | F20: 1 | G20: 23 | H20: BIENES Y SERVICIOS | I20: 23 2 1 299 | J20: OTROS GASTOS | K20: 0 | L20: 15100 | M20: 0 | N20: 0 | O20: 0 | P20: 0 | Q20: 0 | R20: 0 | S20: 15100 | T20: 0 | U20: 0 | V20: 0 | W20: 0 | X20: 0 | Y20: 15100 | Z20: 0 | AA20: 0 | AB20: 1 | AC20: 0 | AD20: 0
A21: 300 | B21: CALLAO | C21: 5005230 | D21: AMBITO EDUCATIVO | E21: RO | F21: 1 | G21: 23 | H21: BIENES Y SERVICIOS | I21: 23 2 2 4 4 | J21: SERVICO DE IMPRESIÓN ENCUADERNACION Y EMPASTADO | K21: 0 | L21: 3200 | M21: 0 | N21: 0 | O21: 0 | P21: 0 | Q21: 0 | R21: 0 | S21: 1575 | T21: 0 | U21: 0 | V21: 0 | W21: 0 | X21: 0 | Y21: 1575 | Z21: 1575 | AA21: 1575 | AB21: 0.4921875 | AC21: 0.4921875 | AD21: 0.4921875
A22: 300 | B22: CALLAO | C22: 5005230 | D22: AMBITO EDUCATIVO | E22: RO | F22: 1 | G22: 23 | H22: BIENES Y SERVICIOS | I22: 23 2 4 1 5 | J22: DE MAQUINAS Y EQUIPO EN GRAL | K22: 0 | L22: 16000 | M22: 0 | N22: 0 | O22: 0 | P22: 9500 | Q22: 0 | R22: 2800 | S22: 2700 | T22: 0 | U22: 0 | V22: 0 | W22: 0 | X22: 0 | Y22: 15000 | Z22: 15000 | AA22: 15000 | AB22: 0.9375 | AC22: 0.9375 | AD22: 0.9375
A23: 300 | B23: CALLAO | C23: 5005230 | D23: AMBITO EDUCATIVO | E23: RO | F23: 1 | G23: 23 | H23: BIENES Y SERVICIOS | I23: 23 2 7 299 | J23: OTROS SERVICIOS SIMILARES | K23: 0 | L23: 13840 | M23: 0 | N23: 0 | O23: 0 | P23: 3460 | Q23: 6920 | R23: 3460 | S23: 0 | T23: 0 | U23: 0 | V23: 0 | W23: 0 | X23: 0 | Y23: 13840 | Z23: 13840 | AA23: 13840 | AB23: 1 | AC23: 1 | AD23: 1
A24: 300 | B24: CALLAO | C24: 5005230 | D24: AMBITO EDUCATIVO | E24: RO | F24: 1 | G24: 23 | H24: BIENES Y SERVICIOS | I24: 23 2 8 1 1 | J24: CONTRATO ADMINISTRATIVO DE SERVICIOS | K24: 307496 | L24: 645438 | M24: 413536 | N24: 413536 | O24: 262930.24 | Y24: 413536 | Z24: 413536 | AA24: 318672 | AB24: 0.6407060012 | AC24: 0.6407060012 | AD24: 0.4937298393
A25: 300 | B25: CALLAO | C25: 5005230 | D25: AMBITO EDUCATIVO | E25: RO | F25: 1 | G25: 23 | H25: BIENES Y SERVICIOS | I25: 23 2 8 1 2 | J25: CONTRIBUCION A ESSALUD DE LOS CAS | K25: 11898 | L25: 20956 | M25: 16218 | N25: 16218 | O25: 9603 | Y25: 16218 | Z25: 16218 | AA25: 11284 | AB25: 0.7739072342 | AC25: 0.7739072342 | AD25: 0.5384615385
A26: 302 | B26: VENTANILLA | C26: 5005230 | D26: AMBITO EDUCATIVO | E26: RO | F26: 1 | G26: 23 | H26: BIENES Y SERVICIOS | I26: 23 1 5 1 2 | J26: PAPELERIA EN GRAL UTILES Y MATERIALES DE OFICNA | K26: 0 | L26: 2000 | Y26: 1999.78 | Z26: 1999.78 | AA26: 1999.78 | AB26: 0.99989 | AC26: 0.99989 | AD26: 0.99989
B27: TOTAL 23 AMBITO ERDUCATIVO RO | K27: =SUM(K18:K26) -> 890743 | L27: =SUM(L18:L26) -> 890743 | M27: 488754 | N27: 437654 | O27: 290293.24 | P27: 52850.2 | Q27: 10966 | R27: 14998 | S27: 54339.74 | T27: 0 | U27: 0 | V27: 0 | W27: 0 | X27: 0 | Y27: 649567.72 | Z27: 634467.72 | AA27: 460063.98 | AB27: 0.7292425761 | AC27: 0.7122904362 | AD27: 0.5164946343
A28: 300 | B28: CALLAO | C28: 5005230 | D28: AMBITO EDUCATIVO | E28: D Y T | F28: 4 | G28: 23 | H28: BIENES Y SERVICIOS | I28: 23 1 1 1 1 | J28: ALIMENTOS Y BEBIDAS PARA CONSUMO HUMANO | K28: 0 | L28: 32000 | M28: 0 | N28: 0 | O28: 0 | P28: 0 | Q28: 0 | R28: 0 | S28: 30000 | T28: 0 | U28: 0 | V28: 0 | W28: 0 | X28: 0 | Y28: =+SUM(M28:X28) -> 30000 | Z28: 30000 | AA28: 0 | AB28: 0.9375 | AC28: 0.9375 | AD28: 0
A29: 300 | B29: CALLAO | C29: 5005230 | D29: AMBITO EDUCATIVO | E29: D Y T | F29: 4 | G29: 23 | H29: BIENES Y SERVICIOS | I29: 23 1 5 1 1 | J29: REPUESTOS Y ACSESORIOS | K29: 0 | L29: 15000 | M29: 0 | N29: 0 | O29: 0 | P29: 0 | Q29: 0 | R29: 0 | S29: 0 | T29: 0 | U29: 0 | V29: 0 | W29: 0 | X29: 0 | Y29: 0 | Z29: 0 | AA29: 0 | AB29: 0 | AC29: 0 | AD29: 0
A30: 300 | B30: CALLAO | C30: 5005230 | D30: AMBITO EDUCATIVO | E30: D Y T | F30: 4 | G30: 23 | H30: BIENES Y SERVICIOS | I30: 23 1 5 1 2 | J30: PAPELERIA EN GENERAL UTILES Y MATERIALES DE OFICINA | K30: 0 | L30: 65000 | M30: 0 | N30: 0 | O30: 0 | P30: 0 | Q30: 0 | R30: 0 | S30: 53633.41 | T30: 0 | U30: 0 | V30: 0 | W30: 0 | X30: 0 | Y30: 53633.41 | Z30: 53633.41 | AA30: 0 | AB30: 0.8251293846 | AC30: 0.8251293846 | AD30: 0
A31: 300 | B31: CALLAO | C31: 5005230 | D31: AMBITO EDUCATIVO | E31: D Y T | F31: 4 | G31: 23 | H31: BIENES Y SERVICIOS | I31: 23 1 5 3 1 | J31: ASEO LIMPIEZA Y TOCADOR | K31: 0 | L31: 3800 | M31: 0 | N31: 0 | O31: 0 | P31: 0 | Q31: 0 | R31: 0 | S31: 0 | T31: 0 | U31: 0 | V31: 0 | W31: 0 | X31: 0 | Y31: 0 | Z31: 0 | AA31: 0 | AB31: 0 | AC31: 0 | AD31: 0
A32: 300 | B32: CALLAO | C32: 5005230 | D32: AMBITO EDUCATIVO | E32: D Y T | F32: 4 | G32: 23 | H32: BIENES Y SERVICIOS | I32: 23 1 6 199 | J32: OTROS GASTOS Y REPUESTOS | K32: 0 | L32: 4000 | M32: 0 | N32: 0 | O32: 0 | P32: 0 | Q32: 0 | R32: 0 | S32: 0 | T32: 0 | U32: 0 | V32: 0 | W32: 0 | X32: 0 | Y32: 0 | Z32: 0 | AA32: 0 | AB32: 0 | AC32: 0 | AD32: 0
A33: 300 | B33: CALLAO | C33: 5005230 | D33: AMBITO EDUCATIVO | E33: D Y T | F33: 4 | G33: 23 | H33: BIENES Y SERVICIOS | I33: 23 1 9 1 2 | J33: MATERIAL DIDACTICO ACCSESORIOS Y UTILES DE ENSEÑANZA | K33: 0 | L33: 53316 | M33: 0 | N33: 0 | O33: 5708.71 | P33: 29291.82 | Q33: 225.43 | R33: 0 | S33: 0 | T33: 0 | U33: 0 | V33: 0 | W33: 0 | X33: 0 | Y33: 35225.96 | Z33: 35225.96 | AA33: 35225.96 | AB33: 0.660701478 | AC33: 0.660701478 | AD33: 0.660701478
A34: 300 | B34: CALLAO | C34: 5005230 | D34: AMBITO EDUCATIVO | E34: D Y T | F34: 4 | G34: 23 | H34: BIENES Y SERVICIOS | I34: 23 111 1 1 | J34: PARA EDIFICIOS Y ESTRUCTURAS | K34: 0 | L34: 3534 | M34: 0 | N34: 0 | O34: 0 | P34: 2700 | Q34: 0 | R34: 0 | S34: 0 | T34: 0 | U34: 0 | V34: 0 | W34: 0 | X34: 0 | Y34: 2700 | Z34: 2700 | AA34: 2700 | AB34: 0.7640067912 | AC34: 0.7640067912 | AD34: 0.7640067912
A35: 300 | B35: CALLAO | C35: 5005230 | D35: AMBITO EDUCATIVO | E35: D Y T | F35: 4 | G35: 23 | H35: BIENES Y SERVICIOS | I35: 23 2 2 4 4 | J35: SERVICO DE IMPRESIÓN ENCUADERNACION Y EMPASTADO | K35: 0 | L35: 201369 | M35: 0 | N35: 0 | O35: 26550 | P35: 3611 | Q35: 1200 | R35: 43050 | S35: 124466 | T35: 0 | U35: 0 | V35: 0 | W35: 0 | X35: 0 | Y35: 198877 | Z35: 198877 | AA35: 84597 | AB35: 0.9876247089 | AC35: 0.9876247089 | AD35: 0.4201093515
A36: 300 | B36: CALLAO | C36: 5005230 | D36: AMBITO EDUCATIVO | E36: D Y T | F36: 4 | G36: 23 | H36: BIENES Y SERVICIOS | I36: 23 2 4 1 5 | J36: DE MAQUINAS Y EQUIPO EN GRAL | K36: 0 | L36: 6000 | M36: 0 | N36: 0 | O36: 0 | P36: 0 | Q36: 0 | R36: 0 | S36: 0 | T36: 0 | U36: 0 | V36: 0 | W36: 0 | X36: 0 | Y36: 0 | Z36: 0 | AA36: 0 | AB36: 0 | AC36: 0 | AD36: 0
A37: 300 | B37: CALLAO | C37: 5005230 | D37: AMBITO EDUCATIVO | E37: D Y T | F37: 4 | G37: 23 | H37: BIENES Y SERVICIOS | I37: 23 2 7 299 | J37: OTROS SERVICIOS SIMILARES | K37: 0 | L37: 72660 | M37: 0 | N37: 0 | O37: 0 | P37: 0 | Q37: 0 | R37: 6920 | S37: 62280 | T37: 0 | U37: 0 | V37: 0 | W37: 0 | X37: 0 | Y37: 69200 | Z37: 69200 | AA37: 10380 | AB37: 0.9523809524 | AC37: 0.9523809524 | AD37: 0.1428571429
A38: 300 | B38: CALLAO | C38: 5005230 | D38: AMBITO EDUCATIVO | E38: D Y T | F38: 4 | G38: 23 | H38: BIENES Y SERVICIOS | I38: 23 2 71199 | J38: SERVICIOS DIVERSOS | K38: 0 | L38: 453433 | M38: 0 | N38: 0 | O38: 17662.6 | P38: 73970.4 | Q38: 10950 | R38: 49576 | S38: 296600 | T38: 0 | U38: 0 | V38: 0 | W38: 0 | X38: 0 | Y38: 448759 | Z38: 448759 | AA38: 169269 | AB38: 0.9896919721 | AC38: 0.9896919721 | AD38: 0.3733054277
A39: 300 | B39: CALLAO | C39: 5005230 | D39: AMBITO EDUCATIVO | E39: D Y T | F39: 4 | G39: 26 | H39: ACTIVOS NO FINANCIEROS | I39: 26 3 2 1 1 | J39: MAQUINAS Y EQUIPO | K39: 0 | L39: 22000 | M39: 0 | N39: 0 | O39: 0 | P39: 4515.33 | Q39: 0 | R39: 0 | S39: 6750 | T39: 0 | U39: 0 | V39: 0 | W39: 0 | X39: 0 | Y39: 11265.33 | Z39: 11265.33 | AA39: 4515.33 | AB39: 0.5120604545 | AC39: 0.5120604545 | AD39: 0.2052422727
A40: 300 | B40: CALLAO | C40: 5005230 | D40: AMBITO EDUCATIVO | E40: D Y T | F40: 4 | G40: 26 | H40: ACTIVOS NO FINANCIEROS | I40: 26 3 2 1 2 | J40: MOBILIARIO | K40: 0 | L40: 12000 | M40: 0 | N40: 0 | O40: 0 | P40: 0 | Q40: 0 | R40: 2940 | S40: 480 | T40: 0 | U40: 0 | V40: 0 | W40: 0 | X40: 0 | Y40: 3420 | Z40: 2940 | AA40: 2940 | AB40: 0.285 | AC40: 0.245 | AD40: 0.245
A41: 300 | B41: CALLAO | C41: 5005230 | D41: AMBITO EDUCATIVO | E41: D Y T | F41: 4 | G41: 26 | H41: ACTIVOS NO FINANCIEROS | I41: 26 3 2 2 1 | J41: MAQUINA PARA IIEE | K41: 0 | L41: 49720 | M41: 0 | N41: 0 | O41: 0 | P41: 0 | Q41: 0 | R41: 0 | S41: 28934 | T41: 0 | U41: 0 | V41: 0 | W41: 0 | X41: 0 | Y41: 28934 | Z41: 28934 | AA41: 0 | AB41: 0.5819388576 | AC41: 0.5819388576 | AD41: 0
A42: 300 | B42: CALLAO | C42: 5005230 | D42: AMBITO EDUCATIVO | E42: D Y T | F42: 4 | G42: 26 | H42: ACTIVOS NO FINANCIEROS | I42: 26 3 2 2 2 | J42: MOBILIARIO PARA IIEE | K42: 0 | L42: 3000 | M42: 0 | N42: 0 | O42: 0 | P42: 0 | Q42: 0 | R42: 0 | S42: 0 | T42: 0 | U42: 0 | V42: 0 | W42: 0 | X42: 0 | Y42: 0 | Z42: 0 | AA42: 0 | AB42: 0 | AC42: 0 | AD42: 0
A43: 300 | B43: CALLAO | C43: 5005230 | D43: AMBITO EDUCATIVO | E43: D Y T | F43: 4 | G43: 26 | H43: ACTIVOS NO FINANCIEROS | I43: 26 3 2 3 1 | J43: EQUIPOS COMPUTACIONALES Y PERIFERICOS | K43: 0 | L43: 102060 | M43: 0 | N43: 0 | O43: 0 | P43: 6900 | Q43: 12741.17 | R43: 0 | S43: 77550 | T43: 0 | U43: 0 | V43: 0 | W43: 0 | X43: 0 | Y43: 97191.17 | Z43: 97191.17 | AA43: 19641.17 | AB43: 0.9522944346 | AC43: 0.9522944346 | AD43: 0.1924472859
A44: 302 | B44: VENTANILLA | C44: 5005230 | D44: AMBITO EDUCATIVO | E44: D Y T | F44: 4 | G44: 23 | H44: BIENES Y SERVICIOS | I44: 23 1 9 1 2 | J44: MATERIAL DIDACTICO,ACCSESORIOS Y UTILES DE ENSEÑANZA | K44: 0 | L44: 49196 | M44: 0 | N44: 0 | O44: 26550 | P44: 3611 | Q44: 1200 | R44: 43050 | S44: 124466 | T44: 0 | U44: 0 | V44: 0 | W44: 0 | X44: 0 | Y44: 49196 | Z44: 49196 | AA44: 49196 | AB44: 1 | AC44: 1 | AD44: 1
A45: 302 | B45: VENTANILLA | C45: 5005230 | D45: AMBITO EDUCATIVO | E45: D Y T | F45: 4 | G45: 23 | H45: BIENES Y SERVICIOS | I45: 23 111 1 1 | J45: PARA EDIFICIOS Y ESTRUCTURAS | K45: 0 | L45: 2000 | M45: 0 | N45: 0 | O45: 0 | P45: 0 | Q45: 0 | R45: 0 | S45: 0 | T45: 0 | U45: 0 | V45: 0 | W45: 0 | X45: 0 | Y45: 2000 | Z45: 2000 | AA45: 2000 | AB45: 1 | AC45: 1 | AD45: 1
A46: 302 | B46: VENTANILLA | C46: 5005230 | D46: AMBITO EDUCATIVO | E46: D Y T | F46: 4 | G46: 23 | H46: BIENES Y SERVICIOS | I46: 23 2 2 4 4 | J46: SERVICIO DE IMPRESIONES ENCUADERNACION Y EMPASTADO | K46: 0 | L46: 33000 | M46: 0 | N46: 0 | O46: 0 | P46: 0 | Q46: 0 | R46: 6920 | S46: 62280 | T46: 0 | U46: 0 | V46: 0 | W46: 0 | X46: 0 | Y46: 25000 | Z46: 25000 | AA46: 25000 | AB46: 0.7575757576 | AC46: 0.7575757576 | AD46: 0.7575757576
A47: 302 | B47: VENTANILLA | C47: 5005230 | D47: AMBITO EDUCATIVO | E47: D Y T | F47: 4 | G47: 23 | H47: BIENES Y SERVICIOS | I47: 23 2 71199 | J47: SERVICIOS DIVERSOS | K47: 0 | L47: 293804 | M47: 0 | N47: 0 | O47: 17662.6 | P47: 73970.4 | Q47: 10950 | R47: 49576 | S47: 296600 | T47: 0 | U47: 0 | V47: 0 | W47: 0 | X47: 0 | Y47: 269042.58 | Z47: 269042.58 | AA47: 185274.58 | AB47: 0.9157212972 | AC47: 0.9157212972 | AD47: 0.6306060503
A48: 302 | B48: VENTANILLA | C48: 5005230 | D48: AMBITO EDUCATIVO | E48: D Y T | F48: 4 | G48: 26 | H48: ACTIVOS NO FINANCIEROS | I48: 26 3 2 2 1 | J48: MAQUINAS Y EQUIPO PARA IIEE | K48: 0 | L48: 81100 | Y48: 73684.64 | Z48: 73684.64 | AA48: 37700.04 | AB48: =+Y48/L48 -> 0.9085652281 | AC48: =+Z48/L48 -> 0.9085652281 | AD48: =+AA48/L48 -> 0.464858693
A49: 302 | B49: VENTANILLA | C49: 5005230 | D49: AMBITO EDUCATIVO | E49: D Y T | F49: 4 | G49: 26 | H49: ACTIVOS NO FINANCIEROS | I49: 26 3 2 3 1 | J49: EQUIPOS COMPUTACIONALES Y PERIFERICOS | K49: 0 | L49: 8500 | Y49: 8500 | Z49: 8500 | AA49: 8500 | AB49: 1 | AC49: 1 | AD49: 1
A50: 302 | B50: VENTANILLA | C50: 5005230 | D50: AMBITO EDUCATIVO | E50: D Y T | F50: 4 | G50: 26 | H50: ACTIVOS NO FINANCIEROS | I50: 26 3 2 3 3 | J50: EQUIPOS DE TELECOMUNICACIONES | K50: 0 | L50: 14000 | Y50: 14000 | Z50: 14000 | AA50: 14000 | AB50: 1 | AC50: 1 | AD50: 1
B51: TOTAL 23 Y 26 AMBITO EDUCATIVO DY T | K51: =SUM(K28:K50) -> 0 | L51: =SUM(L28:L50) -> 1580492 | M51: 0 | N51: 0 | O51: 94133.91 | P51: 198569.95 | Q51: 37266.6 | R51: 202032 | S51: 1164039.41 | T51: 0 | U51: 0 | V51: 0 | W51: 0 | X51: 0 | Y51: 1420629.09 | Z51: 1420149.09 | AA51: 650939.08 | AB51: =+Y51/L51 -> 0.8988524396 | AC51: =+Z51/L51 -> 0.8985487367 | AD51: =+AA51/L51 -> 0.4118585099
B52: TOTAL | K52: =SUM(K51,K27,K17) -> 1090743 | L52: 2671235 | M52: 520254 | N52: 439154 | O52: 385927.15 | P52: 264370.15 | Q52: 104776.81 | R52: 234338.4 | S52: 1284474.15 | T52: 0 | U52: 0 | V52: 0 | W52: 0 | X52: 0 | Y52: 2254594.42 | Z52: 2178669.42 | AA52: 1196305.67 | AB52: =+Y52/L52 -> 0.8440269838 | AC52: =+Z52/L52 -> 0.8156038012 | AD52: =+AA52/L52 -> 0.4478474077
B55: Fuente: REPORTE SIAF 2018 AL 26 07 18
B56: Análisis:
B57: Callao - Ventanilla - Consolidado
B58: En las especificas de gasto 2.3 por la fuente de financiamiento de recursos ordinarios presenta una ejecucion de S/85,302.61 que representa una ejecucion del 42.65% en el ambito familiar por concepto de adquisicion de utiles y materiales de oficina,material didactico,servicio de impresiones de material de difusion ,servicio de atrencion de break para las aplicaciones de familias fuertes y servicios de fotocopiado y grabacion de estuches con dvds para los docentes facilitadores .
B59: En las especificas de gasto 2.3 por la fuente de financiamiento de recursos ordinarios presenta una ejecucion de S/460,063.98 que representa una ejecucion del 51.65% de ejecucion en el ambito educativo por concepto de adquisicion de utiles y materiales de oficina , servicio de impresion de materiales de difusion lbretas afiches entre otros , servicio de reparacion y mantenimiento de impresoras y fotocopiadoras ,servicios de grabacion de material de difusion ,servicios de refrigerios y break ,pago de etr por la modalidad de cas y contribuciones a essalud de cas y pago de un facilitador por la modalidad de terceros .
B60: En las especificas de gasto 2.3 Y 2.6 por la fuente de financiamiento de Donaciones y transferencias presenta una ejecucion de S/650,939.08 que representa una ejecucion del 41.19 % de ejecucion en el ambito educativo por concepto de adquisicion de utiles y materiales de oficina servicio de impresion de material de difusion, ,servicios de grabacion y confeccion de materiales de difusion ,servicios de refrigerios y break ,asi mismo como la adquisicion de equuipos computacxionales y maquina y equipo.
B63: A la fecha Callao y Ventanilla tiene un avance de ejecucion a toda meta y fuente de fianciamiento de S/1,196,305.67 que representa un 44.78%
